fUSD/lending_fUSD_20240214
["ID","MTS","AMOUNT","RATE_DAILY","PERIOD"]
[313992854,1707918682795,-500.0,0.00037309,2]
[313992855,1707918682805,-500.0,0.00037309,2]
[313992856,1707918682814,-500.0,0.00037309,2]
[313992857,1707918682824,-500.0,0.00037309,2]
[313992858,1707918682833,-564.43625284,0.00037309,2]
[313992859,1707918682843,-500.0,0.00037309,2]
[313992860,1707918682853,-500.0,0.00037309,2]
[313992861,1707918682862,-646.68,0.00037309,2]
[313992862,1707918682872,-711.13,0.00037309,2]
[313992863,1707918682881,-500.0,0.00037309,2]
[313992864,1707918682890,-500.0,0.00037309,2]
[313992865,1707918682899,-500.0,0.00037309,2]
[313992866,1707918682908,-500.0,0.00037309,2]
[313992867,1707918682918,-500.0,0.00037309,2]
[313992868,1707918682927,-500.0,0.00037309,2]
[313992869,1707918682936,-500.0,0.00037309,2]
[313992870,1707918682946,-515.43965548,0.00037309,2]
[313992871,1707918682956,-500.0,0.00037309,2]
[313992872,1707918682966,-500.0,0.00037309,2]
[313992873,1707918682975,-500.0,0.00037309,2]
[313992874,1707918682984,-500.0,0.00037309,2]
[313992875,1707918682993,-579.59,0.00037309,2]
[313992876,1707918683002,-500.0,0.00037309,2]
[313992877,1707918683013,-771.59,0.00037309,2]
[313992878,1707918683022,-500.0,0.00037309,2]
[313992879,1707918683031,-500.0,0.00037309,2]
[313992880,1707918683041,-500.0,0.00037309,2]
[313992881,1707918683050,-500.0,0.00037309,2]
[313992882,1707918683060,-500.0,0.00037309,2]
[313992883,1707918683069,-500.0,0.00037309,2]
[313992884,1707918683079,-500.0,0.00037309,2]
[313992885,1707918683088,-505.82789939,0.00037309,2]
[313992886,1707918683098,-845.86,0.00037309,2]
[313992887,1707918683107,-773.25,0.00037309,2]
[313992888,1707918683117,-500.0,0.00037309,2]
[313992889,1707918683127,-500.0,0.00037309,2]
[313992890,1707918683137,-543.39,0.00037309,2]
[313992891,1707918683147,-500.0,0.00037309,2]
[313992892,1707918683156,-500.0,0.00037309,2]
[313992893,1707918683167,-205.08169809,0.00037322,10]
[313992894,1707918683176,-232.71898775,0.00037332,10]
[313992895,1707918683186,-232.71898775,0.00037361,10]
[313992896,1707918683195,-232.71898775,0.00037362,10]
[313992897,1707918683205,-232.71898775,0.00037372,10]
[313992898,1707918683215,-232.71898775,0.00037377,10]
[313992899,1707918683225,-232.71898775,0.00037383,10]
[313992900,1707918683234,-232.71898775,0.00037397,10]
[313992901,1707918683243,-1878.06584765,0.00037443,10]
[313992902,1707918683253,-800.0,0.00037475,5]
[313992903,1707918683264,-150.0,0.00037499,2]
[313992904,1707918683274,-164407.72470098,0.000375,4]
[313992905,1707918683284,-150.0,0.00037523,2]
[313992906,1707918683294,-267.76869445,0.00037531,2]
[313992907,1707918683304,-200.0,0.00037533,18]
[313992908,1707918683314,-500.0,0.00037534,2]
[313992909,1707918683324,-306.97783284,0.00037534,2]
[313992910,1707918683333,-500.0,0.00037534,2]
[313992911,1707918683343,-500.0,0.00037534,2]
[313992912,1707918683353,-500.0,0.00037534,2]
[313992913,1707918683362,-500.0,0.00037534,2]
[313992914,1707918683372,-257.66805869,0.00037534,2]
[313992915,1707918683382,-500.0,0.00037534,2]
[313992916,1707918683391,-515.37052677,0.00037534,2]
[313992917,1707918683401,-150.0,0.00037534,2]
[313992918,1707918683411,-500.0,0.00037534,2]
[313992919,1707918683420,-500.0,0.00037534,2]
[313992920,1707918683430,-419.37592313,0.00037534,2]
[313992921,1707918683440,-500.0,0.00037534,2]
[313992922,1707918683449,-500.0,0.00037534,2]
[313992923,1707918683459,-500.0,0.00037534,2]
[313992924,1707918683468,-500.0,0.00037534,2]
[313992925,1707918683478,-500.0,0.00037534,2]
[313992926,1707918683488,-500.0,0.00037534,2]
[313992927,1707918683497,-551.24817026,0.00037534,2]
[313992928,1707918683507,-500.0,0.00037534,2]
[313992929,1707918683516,-500.0,0.00037534,2]
[313992930,1707918683526,-563.95879387,0.00037534,2]
[313992931,1707918683535,-500.0,0.00037534,2]
[313992932,1707918683545,-500.0,0.00037534,2]
[313992933,1707918683555,-666.65,0.00037534,2]
[313992934,1707918683565,-500.0,0.00037534,2]
[313992935,1707918683575,-489.25999435,0.00037534,2]
[313992936,1707918683584,-523.01111786,0.00037534,2]
[313992937,1707918683593,-500.0,0.00037534,2]
[313992938,1707918683603,-500.0,0.00037534,2]
[313992939,1707918683612,-500.0,0.00037534,2]
[313992940,1707918683621,-500.0,0.00037534,2]
[313992941,1707918683631,-500.0,0.00037534,2]
[313992942,1707918683642,-508.68821964,0.00037534,2]
[313992943,1707918683651,-500.0,0.00037534,2]
[313992944,1707918683660,-500.0,0.00037534,2]
[313992945,1707918683671,-500.0,0.00037534,2]
[313992946,1707918683680,-500.0,0.00037534,2]
[313992947,1707918683689,-500.0,0.00037534,2]
[313992948,1707918683698,-608.03751442,0.00037534,2]
[313992949,1707918683707,-500.0,0.00037534,2]
[313992950,1707918683717,-500.0,0.00037534,2]
[313992951,1707918683727,-610.71,0.00037534,2]
[313992952,1707918683737,-502.17373337,0.00037534,2]
[313992953,1707918683746,-500.0,0.00037534,2]
[313992954,1707918683756,-500.0,0.00037534,2]
[313992955,1707918683765,-500.0,0.00037534,2]
[313992956,1707918683774,-500.0,0.00037534,2]
[313992957,1707918683783,-500.0,0.00037534,2]
[313992958,1707918683792,-500.0,0.00037534,2]
[313992959,1707918683801,-500.0,0.00037534,2]
[313992960,1707918683810,-500.0,0.00037534,2]
[313992961,1707918683820,-554.07,0.00037534,2]
[313992962,1707918683829,-542.31,0.00037534,2]
[313992963,1707918683838,-500.0,0.00037534,2]
[313992964,1707918683848,-500.0,0.00037534,2]
[313992965,1707918683857,-680.98,0.00037534,2]
[313992966,1707918683866,-500.0,0.00037534,2]
[313992967,1707918683875,-500.0,0.00037534,2]
[313992968,1707918683885,-500.0,0.00037534,2]
[313992969,1707918683895,-564.97,0.00037534,2]
[313992970,1707918683905,-493.29760142,0.00037534,2]
[313992971,1707918683913,-500.0,0.00037534,2]
[313992972,1707918683923,-500.0,0.00037534,2]
[313992973,1707918683932,-1037.12,0.00037534,2]
[313992974,1707918683941,-602.3596139,0.00037534,2]
[313992975,1707918683951,-639.43,0.00037534,2]
[313992976,1707918683961,-500.0,0.00037534,2]
[313992977,1707918683971,-500.0,0.00037534,2]
[313992978,1707918683981,-593.09,0.00037534,2]
[313992979,1707918683992,-662.66,0.00037534,2]
[313992980,1707918684001,-586.77,0.00037534,2]
[313992981,1707918684013,-500.0,0.00037534,2]
[313992982,1707918684023,-752.61,0.00037534,2]
[313992983,1707918684032,-781.56,0.00037534,2]
[313992984,1707918684041,-500.0,0.00037534,2]
[313992985,1707918684052,-500.0,0.00037534,2]
[313992986,1707918684062,-531.18285394,0.00037534,2]
[313992987,1707918684072,-686.38,0.00037534,2]
[313992988,1707918684081,-538.8,0.00037534,2]
[313992989,1707918684091,-500.0,0.00037534,2]
[313992990,1707918684101,-500.0,0.00037534,2]
[313992991,1707918684111,-500.0,0.00037534,2]
[313992992,1707918684120,-500.0,0.00037534,2]
[313992993,1707918684130,-500.0,0.00037534,2]
[313992994,1707918684139,-500.0,0.00037534,2]
[313992995,1707918684149,-500.0,0.00037534,2]
[313992996,1707918684158,-500.0,0.00037534,2]
[313992997,1707918684168,-1000.0,0.00037534,7]
[313992998,1707918684177,-500.0,0.00037534,2]
[313992999,1707918684187,-538.79,0.00037534,2]
[313993000,1707918684196,-500.0,0.00037534,2]
[313993001,1707918684206,-1088.05,0.00037534,2]
[313993002,1707918684215,-505.07157748,0.00037534,2]
[313993003,1707918684225,-500.0,0.00037534,2]
[313993004,1707918684234,-222.21293443,0.00037534,2]
[313993005,1707918684244,-740.2,0.00037534,2]
[313993006,1707918684254,-1131.8,0.00037534,2]
[313993007,1707918684264,-500.0,0.00037534,2]
[313993008,1707918684274,-688.02,0.00037534,2]
[313993009,1707918684283,-500.0,0.00037534,2]
[313993010,1707918684292,-500.0,0.00037534,2]
[313993011,1707918684301,-1651.95,0.00037534,2]
[313993012,1707918684310,-525.42,0.00037534,2]
[313993013,1707918684321,-769.2,0.00037534,2]
[313993014,1707918684330,-500.0,0.00037534,2]
[313993015,1707918684340,-500.0,0.00037534,2]
[313993016,1707918684350,-500.0,0.00037534,2]
[313993017,1707918684359,-500.0,0.00037534,2]
[313993018,1707918684368,-500.0,0.00037534,2]
[313993019,1707918684377,-500.0,0.00037534,2]
[313993020,1707918684386,-500.0,0.00037534,2]
[313993021,1707918684396,-994.52,0.00037534,2]
[313993022,1707918684405,-500.0,0.00037534,2]
[313993023,1707918684414,-1207.68,0.00037534,2]
[313993024,1707918684424,-1000.0,0.00037534,2]
[313993025,1707918684433,-535.7002508,0.00037534,2]
[313993026,1707918684443,-644.98,0.00037534,2]
[313993027,1707918684452,-500.0,0.00037534,2]
[313993028,1707918684462,-1105.47,0.00037534,2]
[313993029,1707918684472,-899.54,0.00037534,2]
[313993030,1707918684482,-500.0,0.00037534,2]
[313993031,1707918684491,-500.0,0.00037534,2]
[313993032,1707918684501,-686.26,0.00037534,2]
[313993033,1707918684510,-859.98,0.00037534,2]
[313993034,1707918684520,-964.36,0.00037534,2]
[313993035,1707918684529,-500.0,0.00037534,2]
[313993036,1707918684539,-509.76,0.00037534,2]
[313993037,1707918684548,-1087.88,0.00037534,2]
[313993038,1707918684557,-885.89,0.00037534,2]
[313993039,1707918684566,-500.0,0.00037534,2]
[313993040,1707918684575,-1467.73,0.00037534,2]
[313993041,1707918684585,-799.09,0.00037534,2]
[313993042,1707918684594,-500.0,0.00037534,2]
[313993043,1707918684603,-500.0,0.00037534,2]
[313993044,1707918684612,-542.62,0.00037534,2]
[313993045,1707918684623,-873.25,0.00037534,2]
[313993046,1707918684632,-1208.48,0.00037534,2]
[313993047,1707918684643,-595.65,0.00037534,2]
[313993048,1707918684653,-1125.43,0.00037534,2]
[313993049,1707918684662,-640.41,0.00037534,2]
[313993050,1707918684672,-500.0,0.00037534,2]
[313993051,1707918684683,-1575.86,0.00037534,2]
[313993052,1707918684692,-500.0,0.00037534,2]
[313993053,1707918684702,-609.63,0.00037534,2]
[313993054,1707918684711,-500.0,0.00037534,2]
[313993055,1707918684721,-738.2,0.00037534,2]
[313993056,1707918684731,-553.78,0.00037534,2]
[313993057,1707918684740,-585.93,0.00037534,2]
[313993058,1707918684750,-863.16,0.00037534,2]
[313993059,1707918684760,-1318.95,0.00037534,2]
[313993060,1707918684770,-500.0,0.00037534,2]
[313993061,1707918684779,-632.49,0.00037534,2]
[313993062,1707918684789,-878.83,0.00037534,2]
[313993063,1707918684799,-500.0,0.00037534,2]
[313993064,1707918684809,-837.17,0.00037534,2]
[313993065,1707918684819,-659.26,0.00037534,2]
[313993066,1707918684828,-1230.61,0.00037534,2]
[313993067,1707918684837,-500.0,0.00037534,2]
[313993068,1707918684847,-500.0,0.00037534,2]
[313993069,1707918684857,-500.0,0.00037534,2]
[313993070,1707918684866,-1303.9,0.00037534,2]
[313993071,1707918684876,-500.0,0.00037534,2]
[313993072,1707918684885,-1302.02,0.00037534,2]
[313993073,1707918684894,-695.14,0.00037534,2]
[313993074,1707918684903,-997.21,0.00037534,2]
[313993075,1707918684912,-1326.61,0.00037534,2]
[313993076,1707918684921,-500.0,0.00037534,2]
[313993077,1707918684930,-500.0,0.00037534,2]
[313993078,1707918684940,-500.0,0.00037534,2]
[313993079,1707918684949,-500.0,0.00037534,2]
[313993080,1707918684960,-500.0,0.00037534,2]
[313993081,1707918684972,-1210.25,0.00037534,2]
[313993082,1707918684982,-1036.2,0.00037534,2]
[313993083,1707918684992,-500.0,0.00037534,2]
[313993084,1707918685001,-500.0,0.00037534,2]
[313993085,1707918685013,-500.0,0.00037534,2]
[313993086,1707918685022,-500.0,0.00037534,2]
[313993087,1707918685032,-1554.02,0.00037534,2]
[313993088,1707918685042,-794.8,0.00037534,2]
[313993089,1707918685052,-500.0,0.00037534,2]
[313993090,1707918685062,-825.62,0.00037534,2]
[313993091,1707918685072,-639.39,0.00037534,2]
[313993092,1707918685081,-1028.27,0.00037534,2]
[313993093,1707918685091,-500.0,0.00037534,2]
[313993094,1707918685100,-500.0,0.00037534,2]
[313993095,1707918685110,-500.0,0.00037534,2]
[313993096,1707918685120,-500.0,0.00037534,2]
[313993097,1707918685130,-1356.73,0.00037534,2]
[313993098,1707918685140,-1099.78,0.00037534,2]
[313993099,1707918685149,-1213.75,0.00037534,2]
[313993100,1707918685159,-995.39,0.00037534,2]
[313993101,1707918685169,-500.0,0.00037534,2]
[313993102,1707918685178,-646.45,0.00037534,2]
[313993103,1707918685188,-1321.75,0.00037534,2]
[313993104,1707918685198,-500.0,0.00037534,2]
[313993105,1707918685208,-1084.13,0.00037534,2]
[313993106,1707918685218,-1094.34,0.00037534,2]
[313993107,1707918685228,-500.0,0.00037534,7]
[313993108,1707918685237,-529.24,0.00037534,2]
[313993109,1707918685248,-250.0,0.00037534,2]
[313993110,1707918685258,-500.0,0.00037534,2]
[313993111,1707918685268,-500.0,0.00037534,2]
[313993112,1707918685278,-1288.85,0.00037534,2]
[313993113,1707918685287,-500.0,0.00037534,2]
[313993114,1707918685296,-500.0,0.00037534,2]
[313993115,1707918685306,-613.15,0.00037534,2]
[313993116,1707918685315,-740.98,0.00037534,2]
[313993117,1707918685324,-500.0,0.00037534,2]
[313993118,1707918685333,-500.0,0.00037534,2]
[313993119,1707918685342,-918.21,0.00037534,2]
[313993120,1707918685351,-790.84,0.00037534,2]
[313993121,1707918685361,-1413.05,0.00037534,2]
[313993122,1707918685370,-1413.61,0.00037534,2]
[313993123,1707918685379,-754.17,0.00037534,2]
[313993124,1707918685389,-768.11,0.00037534,2]
[313993125,1707918685398,-500.0,0.00037534,2]
[313993126,1707918685408,-500.0,0.00037534,2]
[313993127,1707918685417,-500.0,0.00037534,2]
[313993128,1707918685426,-1147.8,0.00037534,2]
[313993129,1707918685436,-500.0,0.00037534,2]
[313993130,1707918685445,-884.99,0.00037534,2]
[313993131,1707918685455,-535.97973047,0.00037534,2]
[313993132,1707918685466,-1363.27,0.00037534,2]
[313993133,1707918685475,-944.25,0.00037534,2]
[313993134,1707918685485,-500.0,0.00037534,2]
[313993135,1707918685495,-500.0,0.00037534,2]
[313993136,1707918685505,-516.45,0.00037534,2]
[313993137,1707918685516,-1338.49,0.00037534,2]
[313993138,1707918685526,-500.0,0.00037534,2]
[313993139,1707918685536,-721.42,0.00037534,2]
[313993140,1707918685545,-500.0,0.00037534,2]
[313993141,1707918685555,-500.0,0.00037534,2]
[313993142,1707918685564,-1332.5,0.00037534,2]
[313993143,1707918685574,-617.74,0.00037534,2]
[313993144,1707918685583,-500.0,0.00037534,2]
[313993145,1707918685592,-1122.42,0.00037534,2]
[313993146,1707918685601,-500.0,0.00037534,2]
[313993147,1707918685611,-500.0,0.00037534,2]
[313993148,1707918685621,-812.15,0.00037534,2]
[313993149,1707918685634,-1122.49,0.00037534,2]
[313993150,1707918685644,-2014.14,0.00037534,2]
[313993151,1707918685653,-500.0,0.00037534,2]
[313993152,1707918685662,-500.0,0.00037534,2]
[313993153,1707918685673,-500.0,0.00037534,2]
[313993154,1707918685682,-525.43109298,0.00037534,2]
[313993155,1707918685692,-636.6,0.00037534,2]
[313993156,1707918685701,-500.0,0.00037534,2]
[313993157,1707918685712,-993.94,0.00037534,2]
[313993158,1707918685721,-500.0,0.00037534,2]
[313993159,1707918685731,-500.0,0.00037534,2]
[313993160,1707918685741,-667.57,0.00037534,2]
[313993161,1707918685750,-504.7,0.00037534,2]
[313993162,1707918685761,-500.0,0.00037534,2]
[313993163,1707918685770,-500.0,0.00037534,2]
[313993164,1707918685780,-500.0,0.00037534,2]
[313993165,1707918685789,-1764.29,0.00037534,2]
[313993166,1707918685800,-778.77,0.00037534,2]
[313993167,1707918685809,-2191.16,0.00037534,2]
[313993168,1707918685819,-591.81,0.00037534,2]
[313993169,1707918685828,-500.0,0.00037534,2]
[313993170,1707918685837,-500.0,0.00037534,2]
[313993171,1707918685847,-500.0,0.00037534,2]
[313993172,1707918685855,-1816.87,0.00037534,2]
[313993173,1707918685865,-796.54,0.00037534,2]
[313993174,1707918685874,-509.57,0.00037534,2]
[313993175,1707918685883,-510.03,0.00037534,2]
[313993176,1707918685892,-391.85552083,0.00037534,2]
[313993177,1707918685901,-711.35,0.00037534,2]
[313993178,1707918685911,-500.0,0.00037534,2]
[313993179,1707918685920,-500.0,0.00037534,2]
[313993180,1707918685929,-757.25,0.00037534,2]
[313993181,1707918685938,-1499.13,0.00037534,2]
[313993182,1707918685948,-500.0,0.00037534,2]
[313993183,1707918686144,-500.0,0.00037534,2]
[313993184,1707918686154,-566.41,0.00037534,2]
[313993185,1707918686163,-706.01,0.00037534,2]
[313993186,1707918686173,-500.0,0.00037534,2]
[313993187,1707918686182,-1377.12,0.00037534,2]
[313993188,1707918686191,-500.0,0.00037534,2]
[313993189,1707918686201,-1227.9,0.00037534,2]
[313993190,1707918686210,-996.41,0.00037534,2]
[313993191,1707918686219,-644.19,0.00037534,2]
[313993192,1707918686229,-425.98752575,0.00037534,2]
[313993193,1707918686239,-2029.29,0.00037534,2]
[313993194,1707918686249,-1069.18,0.00037534,2]
[313993195,1707918686259,-514.5,0.00037534,2]
[313993196,1707918686269,-500.0,0.00037534,2]
[313993197,1707918686279,-1406.43,0.00037534,2]
[313993198,1707918686288,-1046.25,0.00037534,2]
[313993199,1707918686298,-500.0,0.00037534,2]
[313993200,1707918686307,-1134.09,0.00037534,2]
[313993201,1707918686317,-500.0,0.00037534,2]
[313993202,1707918686326,-729.05,0.00037534,2]
[313993203,1707918686337,-622.27,0.00037534,2]
[313993204,1707918686346,-500.0,0.00037534,2]
[313993205,1707918686356,-500.0,0.00037534,2]
[313993206,1707918686366,-500.0,0.00037534,2]
[313993207,1707918686376,-500.0,0.00037534,2]
[313993208,1707918686385,-1071.7,0.00037534,2]
[313993209,1707918686395,-500.0,0.00037534,2]
[313993210,1707918686404,-762.21,0.00037534,2]
[313993211,1707918686414,-500.0,0.00037534,2]
[313993212,1707918686423,-307.84533531,0.00037534,2]
[313993213,1707918686433,-500.0,0.00037534,2]
[313993214,1707918686442,-517.99,0.00037534,2]
[313993215,1707918686452,-1842.99,0.00037534,2]
[313993216,1707918686461,-500.0,0.00037534,2]
[313993217,1707918686471,-500.0,0.00037534,2]
[313993218,1707918686481,-714.9,0.00037534,2]
[313993219,1707918686491,-500.0,0.00037534,2]
[313993220,1707918686500,-500.0,0.00037534,2]
[313993221,1707918686509,-500.0,0.00037534,2]
[313993222,1707918686519,-505.27,0.00037534,2]
[313993223,1707918686529,-500.0,0.00037534,2]
[313993224,1707918686538,-1657.14,0.00037534,2]
[313993225,1707918686547,-609.86,0.00037534,2]
[313993226,1707918686556,-500.0,0.00037534,2]
[313993227,1707918686566,-500.0,0.00037534,2]
[313993228,1707918686576,-500.0,0.00037534,2]
[313993229,1707918686585,-500.0,0.00037534,2]
[313993230,1707918686595,-500.0,0.00037534,2]
[313993231,1707918686605,-1211.81,0.00037534,2]
[313993232,1707918686614,-500.0,0.00037534,2]
[313993233,1707918686623,-500.0,0.00037534,2]
[313993234,1707918686633,-500.0,0.00037534,2]
[313993235,1707918686645,-521.97,0.00037534,2]
[313993236,1707918686655,-169.09685641,0.00037534,2]
[313993237,1707918686664,-500.0,0.00037534,2]
[313993238,1707918686674,-500.0,0.00037534,2]
[313993239,1707918686684,-1086.38,0.00037534,2]
[313993240,1707918686693,-636.91,0.00037534,2]
[313993241,1707918686702,-1000.0,0.00037534,7]
[313993242,1707918686712,-500.0,0.00037534,2]
[313993243,1707918686722,-500.0,0.00037534,2]
[313993244,1707918686732,-500.0,0.00037534,2]
[313993245,1707918686741,-590.73,0.00037534,2]
[313993246,1707918686750,-301.89667027,0.00037534,2]
[313993247,1707918686759,-846.95,0.00037534,2]
[313993248,1707918686769,-367.00736999,0.00037534,2]
[313993249,1707918686778,-500.0,0.00037534,2]
[313993250,1707918686787,-500.0,0.00037534,2]
[313993251,1707918686796,-500.0,0.00037534,2]
[313993252,1707918686805,-500.0,0.00037534,2]
[313993253,1707918686815,-551.44,0.00037534,2]
[313993254,1707918686824,-608.15,0.00037534,2]
[313993255,1707918686833,-500.0,0.00037534,2]
[313993256,1707918686843,-500.0,0.00037534,2]
[313993257,1707918686852,-500.0,0.00037534,2]
[313993258,1707918686862,-709.47,0.00037534,2]
[313993259,1707918686871,-524.06,0.00037534,2]
[313993260,1707918686880,-500.0,0.00037534,2]
[313993261,1707918686889,-797.65,0.00037534,2]
[313993262,1707918686898,-500.0,0.00037534,2]
[313993263,1707918686908,-640.14,0.00037534,2]
[313993264,1707918686917,-500.0,0.00037534,2]
[313993265,1707918686926,-500.0,0.00037534,2]
[313993266,1707918686935,-500.0,0.00037534,2]
[313993267,1707918686944,-789.73,0.00037534,2]
[313993268,1707918686954,-500.0,0.00037534,2]
[313993269,1707918686963,-610.3,0.00037534,2]
[313993270,1707918686973,-903.49,0.00037534,2]
[313993271,1707918686983,-500.0,0.00037534,2]
[313993272,1707918686992,-650.72,0.00037534,2]
[313993273,1707918687001,-500.0,0.00037534,2]
[313993274,1707918687011,-500.0,0.00037534,2]
[313993275,1707918687020,-500.0,0.00037534,2]
[313993276,1707918687030,-500.0,0.00037534,2]
[313993277,1707918687039,-500.0,0.00037534,2]
[313993278,1707918687049,-500.0,0.00037534,2]
[313993279,1707918687059,-444.30658254,0.00037534,2]
[313993280,1707918687068,-500.0,0.00037534,2]
[313993281,1707918687078,-500.0,0.00037534,2]
[313993282,1707918687088,-500.0,0.00037534,2]
[313993283,1707918687098,-2051.57,0.00037534,2]
[313993284,1707918687109,-500.0,0.00037534,2]
[313993285,1707918687120,-845.58,0.00037534,2]
[313993286,1707918687131,-500.0,0.00037534,2]
[313993287,1707918687142,-500.0,0.00037534,2]
[313993288,1707918687152,-1484.98,0.00037534,2]
[313993289,1707918687162,-882.95,0.00037534,2]
[313993290,1707918687172,-500.0,0.00037534,2]
[313993291,1707918687183,-500.0,0.00037534,2]
[313993292,1707918687193,-500.0,0.00037534,2]
[313993293,1707918687204,-500.0,0.00037534,2]
[313993294,1707918687213,-1266.63,0.00037534,2]
[313993295,1707918687223,-500.0,0.00037534,2]
[313993296,1707918687232,-750.02,0.00037534,2]
[313993297,1707918687241,-725.91,0.00037534,2]
[313993298,1707918687250,-500.0,0.00037534,2]
[313993299,1707918687260,-676.49,0.00037534,2]
[313993300,1707918687270,-500.0,0.00037534,2]
[313993301,1707918687280,-1189.99,0.00037534,2]
[313993302,1707918687290,-1081.42,0.00037534,2]
[313993303,1707918687300,-1392.58,0.00037534,2]
[313993304,1707918687309,-545.48,0.00037534,2]
[313993305,1707918687319,-4833.85,0.00037534,2]
[313993306,1707918687328,-500.0,0.00037534,2]
[313993307,1707918687338,-995.85,0.00037534,2]
[313993308,1707918687347,-258.96,0.00037534,2]
[313993309,1707918687356,-500.0,0.00037534,2]
[313993310,1707918687366,-500.0,0.00037534,2]
[313993311,1707918687375,-5617.47,0.00037534,2]
[313993312,1707918687385,-500.0,0.00037534,2]
[313993313,1707918687394,-874.25,0.00037534,2]
[313993314,1707918687404,-654.98,0.00037534,2]
[313993315,1707918687413,-500.0,0.00037534,2]
[313993316,1707918687422,-500.0,0.00037534,2]
[313993317,1707918687431,-678.96,0.00037534,2]
[313993318,1707918687440,-1141.89,0.00037534,2]
[313993319,1707918687450,-500.0,0.00037534,2]
[313993320,1707918687459,-500.0,0.00037534,2]
[313993321,1707918687468,-530.39,0.00037534,2]
[313993322,1707918687477,-500.0,0.00037534,2]
[313993323,1707918687487,-500.0,0.00037534,2]
[313993324,1707918687496,-500.0,0.00037534,2]
[313993325,1707918687504,-500.0,0.00037534,2]
[313993326,1707918687514,-500.0,0.00037534,2]
[313993327,1707918687524,-500.0,0.00037534,2]
[313993328,1707918687533,-11536.61,0.00037534,2]
[313993329,1707918687542,-500.0,0.00037534,2]
[313993330,1707918687551,-517.23,0.00037534,2]
[313993331,1707918687561,-500.0,0.00037534,2]
[313993332,1707918687571,-500.0,0.00037534,2]
[313993333,1707918687581,-500.0,0.00037534,2]
[313993334,1707918687591,-755.03,0.00037534,2]
[313993335,1707918687601,-500.0,0.00037534,2]
[313993336,1707918687611,-500.0,0.00037534,2]
[313993337,1707918687621,-826.33,0.00037534,2]
[313993338,1707918687630,-11052.97,0.00037534,2]
[313993339,1707918687641,-844.03,0.00037534,2]
[313993340,1707918687651,-6593.78,0.00037534,2]
[313993341,1707918687661,-500.0,0.00037534,2]
[313993342,1707918687670,-518.65,0.00037534,2]
[313993343,1707918687680,-500.0,0.00037534,2]
[313993344,1707918687690,-500.0,0.00037534,2]
[313993345,1707918687699,-1107.9,0.00037534,2]
[313993346,1707918687708,-500.0,0.00037534,2]
[313993347,1707918687718,-1675.75,0.00037534,2]
[313993348,1707918687727,-500.0,0.00037534,2]
[313993349,1707918687737,-500.0,0.00037534,2]
[313993350,1707918687754,-500.0,0.00037534,2]
[313993351,1707918687772,-500.0,0.00037534,2]
[313993352,1707918687786,-589.43,0.00037534,2]
[313993353,1707918687801,-500.0,0.00037534,2]